[Event "Marshall CC FIDE Premier November 2024"]
[Site "New York"]
[Date "2024.11.02"]
[Round "1.9"]
[White "Li, Aiden Linyuan"]
[Black "Kozower, Ethan"]
[Result "1-0"]
[ECO "C70"]
[WhiteElo "1923"]
[BlackElo "1985"]
[Annotator "RC"]
[PlyCount "59"]
[EventDate "2024.11.01"]
[EventType "swiss"]
[EventCountry "USA"]
[SourceTitle "playchess.com"]
[Source "ChessBase"]
[SourceQuality "1"]
[TimeControl "5400+30"]

1. e4 {[%emt 0:00:04]} e5 {[%emt 1:31:00]} 2. Nf3 {[%emt 0:00:11]} Nc6 {[%emt 0:00:00]} 3. Bb5 {[%emt 0:00:08]} Nge7 {[%emt 0:00:00]} 4. O-O {[%emt 0:00:20]} a6 {[%emt 0:00:00]} 5. Ba4 {[%emt 0:00:10]} Ng6 {[%emt 0:00:00]} 6. c3 {[%emt 0:00:34]} Be7 {[%emt 0:00:00]} 7. d4 {[%emt 0:01:31]} exd4 {[%emt 0:00:00]} 8. cxd4 {[%emt 0:00:09]} O-O {[%emt 0:00:00]} 9. d5 {[%emt 0:02:22]} Nb8 {[%emt 0:00:00]} 10. Nc3 {[%emt 0:01:55]} d6 {[%emt 0:00:00]} 11. Be3 {[%emt 0:03:08]} Ne5 {[%emt 0:00:00]} 12. Nxe5 {[%emt 0:02:26]} dxe5 {[%emt 0:00:00]} 13. f4 {[%emt 0:01:16]} exf4 {[%emt 0:00:00]} 14. Bxf4 {[%emt 0:00:19]} Nd7 {[%emt 0:00:00]} 15. Qf3 {[%emt 0:01:32]} Bd6 {[%emt 0:00:00]} 16. Bxd7 {[%emt 0:02:49]} Qxd7 {[%emt 0:00:00]} 17. Bxd6 {[%emt 0:01:21]} Qxd6 {[%emt 0:08:00]} 18. Rac1 {[%emt 0:10:33]} f5 {[%emt 0:00:00]} 19. Qe3 {[%emt 0:02:32]} Re8 {[%emt 0:00:00]} 20. Rce1 {[%emt 0:01:02]} Qe5 {[%emt 0:00:00]} 21. Qf2 {[%emt 0:06:21]} Rf8 {[%emt 0:00:00]} 22. exf5 {[%emt 0:00:18]} Qxf5 {[%emt 0:00:00]} 23. Qc5 {[%emt 0:00:37]} Qxf1+ {[%emt 0:00:00]} 24. Rxf1 {[%emt 0:00:10]} Bf5 {[%emt 0:00:00]} 25. Qxc7 {[%emt 0:00:22]} Bd3 {[%emt 0:00:00]} 26. Rxf8+ {[%emt 0:00:29]} Rxf8 {[%emt 0:00:00]} 27. h3 {[%emt 0:00:11]} b5 {[%emt 0:00:00]} 28. d6 {[%emt 0:00:12]} b4 {[%emt 0:00:00]} 29. Nd5 {[%emt 0:00:07]} Bb5 {[%emt 0:00:00]} 30. d7 {[%emt 0:00:28]} 1-0

[Event "Marshall CC FIDE Premier November 2024"]
[Site "New York"]
[Date "2024.11.02"]
[Round "1.10"]
[White "Ayyappan, Santhosh"]
[Black "Gartenlaub, Corin"]
[Result "1/2-1/2"]
[ECO "B07"]
[WhiteElo "1933"]
[BlackElo "1895"]
[Annotator "RC"]
[PlyCount "113"]
[EventDate "2024.11.01"]
[EventType "swiss"]
[EventCountry "USA"]
[SourceTitle "playchess.com"]
[Source "ChessBase"]
[SourceQuality "1"]
[TimeControl "5400+30"]

1. e4 {[%emt 0:42:31]} d6 {[%emt 0:00:02]} 2. d4 {[%emt 0:00:25]} Nf6 {[%emt 0:00:04]} 3. Bd3 {[%emt 0:00:15]} e5 {[%emt 0:00:08]} 4. d5 {[%emt 0:00:05]} g6 {[%emt 0:00:41]} 5. Ne2 {[%emt 0:00:54]} Nbd7 {[%emt 0:00:26]} 6. c4 {[%emt 0:00:40]} Nc5 {[%emt 0:00:54]} 7. Nbc3 {[%emt 0:00:10]} Nxd3+ {[%emt 0:01:27]} 8. Qxd3 {[%emt 0:00:12]} Bg7 {[%emt 0:00:45]} 9. a3 {[%emt 0:03:13]} a5 {[%emt 0:01:29]} 10. b3 {[%emt 0:00:47]} O-O {[%emt 0:00:59]} 11. O-O {[%emt 0:01:25]} b6 {[%emt 1:29:05]} 12. Bb2 {[%emt 0:00:50]} Nd7 {[%emt 0:00:00]} 13. Qc2 {[%emt 0:03:49]} f5 {[%emt 0:00:00]} 14. f4 {[%emt 0:01:32]} Nc5 {[%emt 0:00:00]} 15. b4 {[%emt 0:04:07]} Nxe4 {[%emt 0:00:00]} 16. Nxe4 {[%emt 0:00:04]} fxe4 {[%emt 0:00:00]} 17. fxe5 {[%emt 0:00:11]} dxe5 {[%emt 0:00:00]} 18. Ng3 {[%emt 0:13:36]} axb4 {[%emt 0:00:00]} 19. Qxe4 {[%emt 0:01:56]} bxa3 {[%emt 0:00:00]} 20. Rxa3 {[%emt 0:00:18]} Rxf1+ {[%emt 0:00:00]} 21. Nxf1 {[%emt 0:00:07]} Rxa3 {[%emt 0:00:00]} 22. Bxa3 {[%emt 0:00:07]} Bf5 {[%emt 0:00:00]} 23. Qe2 {[%emt 0:02:42]} Qh4 {[%emt 0:00:00]} 24. Bb2 {[%emt 0:00:58]} Qe4 {[%emt 0:00:00]} 25. Qxe4 {[%emt 0:01:26]} Bxe4 {[%emt 0:00:00]} 26. Kf2 {[%emt 0:00:49]} Bd3 {[%emt 0:00:00]} 27. Ne3 {[%emt 0:00:58]} Kf7 {[%emt 0:00:00]} 28. Ke1 {[%emt 0:00:20]} h5 {[%emt 0:00:00]} 29. Kd2 {[%emt 0:01:43]} Be4 {[%emt 0:00:00]} 30. Ke2 {[%emt 0:00:27]} Kf6 {[%emt 0:00:00]} 31. Ba3 {[%emt 0:01:10]} Bh6 {[%emt 0:00:00]} 32. g3 {[%emt 0:00:26]} Kf7 {[%emt 0:00:00]} 33. Nd1 {[%emt 0:00:46]} Bc2 {[%emt 0:00:00]} 34. Nc3 {[%emt 0:04:04]} e4 {[%emt 0:00:00]} 35. Nb5 {[%emt 0:00:06]} Bd3+ {[%emt 0:00:00]} 36. Ke1 {[%emt 0:00:06]} Ke8 {[%emt 0:00:00]} 37. Nxc7+ {[%emt 0:05:33]} Kd7 {[%emt 0:00:00]} 38. Nb5 {[%emt 0:04:06]} Bxc4 {[%emt 0:00:00]} 39. Nc3 {[%emt 0:00:11]} Bg7 {[%emt 0:00:00]} 40. Nxe4 {[%emt 0:02:17]} Bxd5 {[%emt 0:00:00]} 41. Ng5 {[%emt 0:00:52]} Bc3+ {[%emt 0:00:00]} 42. Ke2 {[%emt 0:00:07]} b5 {[%emt 0:00:00]} 43. Kd3 {[%emt 0:00:37]} b4 {[%emt 0:00:00]} 44. Bc1 {[%emt 0:00:08]} Bf6 {[%emt 0:00:00]} 45. h4 {[%emt 0:02:30]} b3 {[%emt 0:00:00]} 46. Ba3 {[%emt 0:00:07]} Kc6 {[%emt 0:00:00]} 47. Ne4 {[%emt 0:01:19]} Bxe4+ {[%emt 0:00:00]} 48. Kxe4 {[%emt 0:00:06]} b2 {[%emt 0:00:00]} 49. Bxb2 {[%emt 0:00:14]} Bxb2 {[%emt 0:00:00]} 50. Kf4 {[%emt 0:02:25]} Bf6 {[%emt 0:00:00]} 51. g4 {[%emt 0:00:04]} hxg4 {[%emt 0:00:00]} 52. Kxg4 {[%emt 0:00:07]} Kd6 {[%emt 0:00:00]} 53. h5 {[%emt 0:00:06]} g5 {[%emt 0:00:00]} 54. h6 {[%emt 0:00:11]} Ke6 {[%emt 0:00:00]} 55. h7 {[%emt 0:00:04]} Kf7 {[%emt 0:00:00]} 56. h8=Q {[%emt 0:00:05]} Bxh8 {[%emt 0:00:00]} 57. Kxg5 {[%emt 0:00:04]} 1/2-1/2

[Event "Marshall CC FIDE Premier November 2024"]
[Site "New York"]
[Date "2024.11.02"]
[Round "2.1"]
[White "Marsh, James J"]
[Black "Zhu, Linxi"]
[Result "1/2-1/2"]
[ECO "D38"]
[WhiteElo "2049"]
[BlackElo "2143"]
[Annotator "RC"]
[PlyCount "86"]
[EventDate "2024.11.01"]
[EventType "swiss"]
[EventCountry "USA"]
[SourceTitle "playchess.com"]
[Source "ChessBase"]
[SourceQuality "1"]
[TimeControl "5400+30"]

1. d4 {[%emt 0:00:04]} Nf6 {[%emt 0:00:10]} 2. c4 {[%emt 0:00:06]} e6 {[%emt 0:00:05]} 3. Nf3 {[%emt 0:00:09]} d5 {[%emt 0:00:06]} 4. Nc3 {[%emt 0:00:16]} Bb4 {[%emt 0:00:06]} 5. Qa4+ {[%emt 0:00:19]} Nc6 {[%emt 0:00:06]} 6. a3 {[%emt 0:00:04]} Bxc3+ {[%emt 0:02:22]} 7. bxc3 {[%emt 0:00:02]} O-O {[%emt 0:00:09]} 8. Bg5 {[%emt 0:00:09]} h6 {[%emt 0:11:39]} 9. Bh4 {[%emt 0:00:11]} Bd7 {[%emt 0:03:09]} 10. Qc2 {[%emt 0:00:52]} Re8 {[%emt 0:00:43]} 11. e3 {[%emt 0:01:29]} Rc8 {[%emt 0:08:32]} 12. Rb1 {[%emt 0:07:50]} b6 {[%emt 0:02:06]} 13. Bd3 {[%emt 0:02:58]} Qe7 {[%emt 0:13:36]} 14. O-O {[%emt 0:05:50]} dxc4 {[%emt 0:15:16]} 15. Bxc4 {[%emt 0:00:13]} Qf8 {[%emt 0:01:31]} 16. Ba6 {[%emt 0:04:48]} Rb8 {[%emt 0:01:02]} 17. Bg3 {[%emt 0:00:58]} Qe7 {[%emt 0:09:06]} 18. Qd3 {[%emt 0:08:28]} Qd8 {[%emt 0:02:22]} 19. h3 {[%emt 0:07:49]} Ne7 {[%emt 0:05:17]} 20. Ne5 {[%emt 0:07:55]} Bc8 {[%emt 0:03:50]} 21. Bb5 {[%emt 0:00:55]} Rf8 {[%emt 0:00:01]} 22. Bc6 {[%emt 0:12:52]} Bb7 {[%emt 0:00:04]} 23. Bxb7 {[%emt 0:00:04]} Rxb7 {[%emt 0:00:03]} 24. c4 {[%emt 0:00:09]} Qc8 {[%emt 0:01:25]} 25. c5 {[%emt 0:04:40]} bxc5 {[%emt 0:00:24]} 26. dxc5 {[%emt 0:00:05]} Rxb1 {[%emt 0:04:47]} 27. Rxb1 {[%emt 0:00:15]} Rd8 {[%emt 0:00:04]} 28. Qc4 {[%emt 0:01:35]} Qa8 {[%emt 0:00:19]} 29. Nf3 {[%emt 0:09:06]} Qc6 {[%emt 0:01:50]} 30. Nd4 {[%emt 0:00:36]} Qe4 {[%emt 0:00:11]} 31. Rb4 {[%emt 0:01:31]} Ned5 {[%emt 0:06:25]} 32. Ra4 {[%emt 0:01:27]} Rb8 {[%emt 0:01:06]} 33. Qc2 {[%emt 0:01:43]} Qxc2 {[%emt 0:01:29]} 34. Nxc2 {[%emt 0:00:01]} Rb1+ {[%emt 0:00:38]} 35. Kh2 {[%emt 0:00:02]} Rc1 {[%emt 0:00:03]} 36. Nb4 {[%emt 0:03:48]} Rxc5 {[%emt 0:01:05]} 37. Rxa7 {[%emt 0:00:23]} Nxb4 {[%emt 0:00:09]} 38. axb4 {[%emt 0:00:08]} Rb5 {[%emt 0:00:04]} 39. Rxc7 {[%emt 0:00:55]} Rxb4 {[%emt 0:00:12]} 40. Rc2 {[%emt 0:02:58]} Rb3 {[%emt 0:00:12]} 41. Be5 {[%emt 0:00:40]} Nd5 {[%emt 0:00:50]} 42. e4 {[%emt 0:00:53]} Ne7 {[%emt 0:00:44]} 43. f3 {[%emt 0:00:35]} Rb5 {[%emt 0:00:19]} 1/2-1/2

[Event "Marshall CC FIDE Premier November 2024"]
[Site "New York"]
[Date "2024.11.02"]
[Round "2.2"]
[White "Hebbar, Eshaan"]
[Black "Tadevosyan, Levon"]
[Result "1-0"]
[ECO "A59"]
[WhiteElo "2130"]
[BlackElo "1867"]
[Annotator "RC"]
[PlyCount "93"]
[EventDate "2024.11.01"]
[EventType "swiss"]
[EventCountry "USA"]
[SourceTitle "playchess.com"]
[Source "ChessBase"]
[SourceQuality "1"]
[TimeControl "5400+30"]

1. d4 {[%emt 0:00:03]} Nf6 {[%emt 0:09:14]} 2. c4 {[%emt 0:00:06]} c5 {[%emt 0:00:06]} 3. d5 {[%emt 0:00:05]} b5 {[%emt 0:00:10]} 4. cxb5 {[%emt 0:00:06]} a6 {[%emt 0:00:04]} 5. bxa6 {[%emt 0:00:08]} Bxa6 {[%emt 0:00:04]} 6. Nc3 {[%emt 0:00:09]} d6 {[%emt 0:00:05]} 7. Nf3 {[%emt 0:00:06]} g6 {[%emt 0:00:05]} 8. e4 {[%emt 0:00:08]} Bxf1 {[%emt 0:00:06]} 9. Kxf1 {[%emt 0:00:02]} Bg7 {[%emt 0:00:04]} 10. g3 {[%emt 0:00:09]} O-O {[%emt 0:00:06]} 11. Kg2 {[%emt 0:00:03]} Nbd7 {[%emt 0:00:03]} 12. h3 {[%emt 0:02:04]} Nb6 {[%emt 0:00:20]} 13. Qc2 {[%emt 0:02:10]} Qd7 {[%emt 0:00:24]} 14. Re1 {[%emt 0:03:52]} Na4 {[%emt 0:08:14]} 15. Bd2 {[%emt 0:07:55]} Nxc3 {[%emt 0:11:58]} 16. Bxc3 {[%emt 0:00:19]} Qb7 {[%emt 0:00:20]} 17. Nd2 {[%emt 0:02:10]} e6 {[%emt 0:03:44]} 18. dxe6 {[%emt 0:00:20]} fxe6 {[%emt 0:00:14]} 19. Kg1 {[%emt 0:00:17]} Qf7 {[%emt 0:21:40]} 20. Re2 {[%emt 0:24:54]} Nd7 {[%emt 0:12:14]} 21. Bxg7 {[%emt 0:11:47]} Kxg7 {[%emt 0:00:08]} 22. Nc4 {[%emt 0:03:59]} Ra6 {[%emt 0:02:23]} 23. Qd3 {[%emt 0:05:01]} d5 {[%emt 0:02:56]} 24. exd5 {[%emt 0:04:48]} exd5 {[%emt 0:00:06]} 25. Ne3 {[%emt 0:02:43]} Rd6 {[%emt 0:06:33]} 26. Ng4 {[%emt 0:01:04]} Re6 {[%emt 0:05:30]} 27. Rae1 {[%emt 0:00:30]} Rxe2 {[%emt 0:04:24]} 28. Rxe2 {[%emt 0:00:02]} h5 {[%emt 0:00:34]} 29. Ne3 {[%emt 0:00:08]} Qf3 {[%emt 0:01:03]} 30. Rd2 {[%emt 0:04:07]} d4 {[%emt 0:02:47]} 31. Nc4 {[%emt 0:00:16]} Qd5 {[%emt 0:01:02]} 32. Re2 {[%emt 0:03:13]} Rf7 {[%emt 0:02:09]} 33. b3 {[%emt 0:00:26]} Qg5 {[%emt 0:01:03]} 34. h4 {[%emt 0:01:53]} Qf6 {[%emt 0:01:13]} 35. Qe4 {[%emt 0:00:59]} Kh7 {[%emt 0:03:20]} 36. Qd5 {[%emt 0:02:33]} Re7 {[%emt 0:01:01]} 37. Rxe7+ {[%emt 0:01:40]} Qxe7 {[%emt 0:00:03]} 38. Qb7 {[%emt 0:00:14]} Kh6 {[%emt 0:01:30]} 39. Kg2 {[%emt 0:00:46]} Qe6 {[%emt 0:00:16]} 40. a4 {[%emt 0:02:11]} Nf6 {[%emt 0:01:45]} 41. Qf3 {[%emt 0:01:00]} Nd5 {[%emt 0:00:27]} 42. a5 {[%emt 0:01:24]} Kg7 {[%emt 0:00:29]} 43. a6 {[%emt 0:01:14]} Qc6 {[%emt 0:01:29]} 44. a7 {[%emt 0:01:01]} Qa8 {[%emt 0:00:08]} 45. Ne5 {[%emt 0:01:27]} Kh6 {[%emt 0:00:54]} 46. Kh2 {[%emt 0:01:18]} Nc7 {[%emt 0:00:30]} 47. Qf4+ {[%emt 0:00:13]} 1-0

[Event "Marshall CC FIDE Premier November 2024"]
[Site "New York"]
[Date "2024.11.02"]
[Round "2.3"]
[White "Zhao, Kevin"]
[Black "Paragua, Megan Althea"]
[Result "0-1"]
[ECO "B45"]
[WhiteElo "2020"]
[BlackElo "2190"]
[Annotator "RC"]
[PlyCount "104"]
[EventDate "2024.11.01"]
[EventType "swiss"]
[EventCountry "USA"]
[SourceTitle "playchess.com"]
[Source "ChessBase"]
[SourceQuality "1"]
[TimeControl "5400+30"]

1. e4 {[%emt 0:00:01]} c5 {[%emt 0:02:48]} 2. Nf3 {[%emt 0:00:05]} e6 {[%emt 0:00:13]} 3. d4 {[%emt 0:00:06]} cxd4 {[%emt 0:00:06]} 4. Nxd4 {[%emt 0:00:07]} Nf6 {[%emt 0:00:12]} 5. Nc3 {[%emt 0:00:08]} Nc6 {[%emt 0:00:06]} 6. Ndb5 {[%emt 0:00:06]} Bb4 {[%emt 0:00:21]} 7. Bf4 {[%emt 0:00:09]} Nxe4 {[%emt 0:02:04]} 8. Qf3 {[%emt 0:00:30]} d5 {[%emt 0:01:46]} 9. O-O-O {[%emt 0:01:51]} Bxc3 {[%emt 0:07:42]} 10. Nc7+ {[%emt 0:05:36]} Kf8 {[%emt 0:03:47]} 11. bxc3 {[%emt 0:01:15]} Qe7 {[%emt 0:23:57]} 12. Kb2 {[%emt 0:08:14]} Rb8 {[%emt 0:01:49]} 13. Na6 {[%emt 0:27:14]} bxa6+ {[%emt 0:01:50]} 14. Bxb8 {[%emt 0:00:25]} Nxb8 {[%emt 0:00:30]} 15. Bc4 {[%emt 0:05:47]} Nd7 {[%emt 0:06:44]} 16. Bb3 {[%emt 0:02:19]} Ne5 {[%emt 0:02:41]} 17. Qe2 {[%emt 0:02:50]} Qf6 {[%emt 0:07:04]} 18. Rd4 {[%emt 0:02:47]} Nc6 {[%emt 0:03:12]} 19. Rd3 {[%emt 0:00:23]} Qf5 {[%emt 0:33:08]} 20. f3 Qxf3 {[%emt 0:00:00]} 21. Re1 {[%emt 0:01:30]} Qxe2 {[%emt 0:00:00]} 22. Rxe2 {[%emt 0:00:25]} Nc5 {[%emt 0:00:00]} 23. Rd1 {[%emt 0:00:25]} a5 {[%emt 0:00:00]} 24. a4 {[%emt 0:00:25]} Ba6 {[%emt 0:00:00]} 25. Re3 {[%emt 0:00:13]} g6 {[%emt 0:00:00]} 26. h4 {[%emt 0:00:26]} h5 {[%emt 0:00:00]} 27. Rg1 {[%emt 0:00:35]} Ne7 {[%emt 0:00:00]} 28. g4 {[%emt 0:00:11]} hxg4 {[%emt 0:00:00]} 29. Rxg4 {[%emt 0:00:02]} Nf5 {[%emt 0:00:00]} 30. Rh3 {[%emt 0:00:02]} Ne4 {[%emt 0:00:00]} 31. Rh2 {[%emt 0:01:08]} Ne3 {[%emt 0:00:00]} 32. Rg1 {[%emt 0:00:24]} Ke7 {[%emt 0:00:00]} 33. Re1 {[%emt 0:00:11]} Nf5 {[%emt 0:00:00]} 34. c4 {[%emt 0:00:27]} dxc4 {[%emt 0:00:00]} 35. Rxe4 {[%emt 0:00:07]} cxb3 {[%emt 0:00:00]} 36. Kxb3 {[%emt 0:00:24]} Bb7 {[%emt 0:00:00]} 37. Rg4 {[%emt 0:00:15]} Bd5+ {[%emt 0:00:00]} 38. Ka3 {[%emt 0:00:36]} Ne3 {[%emt 0:00:00]} 39. Rd4 {[%emt 0:00:20]} Rb8 {[%emt 0:10:00]} 40. c4 {[%emt 0:00:48]} Nxc4+ {[%emt 0:00:00]} 41. Ka2 {[%emt 0:00:17]} Ne5+ {[%emt 0:00:00]} 42. Ka1 {[%emt 0:00:19]} Nf3 {[%emt 0:00:00]} 43. Rf4 {[%emt 0:00:26]} Nxh2 {[%emt 0:00:00]} 44. h5 {[%emt 0:00:03]} g5 {[%emt 0:00:00]} 45. Rf2 {[%emt 0:00:17]} Ng4 {[%emt 0:00:00]} 46. Rc2 {[%emt 0:00:06]} Ne3 {[%emt 0:00:00]} 47. Re2 {[%emt 0:00:04]} Nd1 {[%emt 0:00:00]} 48. Rc2 {[%emt 0:00:17]} Rb1+ {[%emt 0:00:00]} 49. Kxb1 {[%emt 0:00:08]} Be4 {[%emt 0:00:00]} 50. h6 {[%emt 0:00:09]} Bxc2+ {[%emt 0:00:00]} 51. Kxc2 {[%emt 0:00:01]} Kf6 {[%emt 0:00:00]} 52. Kxd1 {[%emt 0:00:01]} Kg6 {[%emt 0:00:00]} 0-1

[Event "Marshall CC FIDE Premier November 2024"]
[Site "New York"]
[Date "2024.11.02"]
[Round "2.4"]
[White "Li, Aiden Linyuan"]
[Black "Chin, Spencer"]
[Result "0-1"]
[ECO "B42"]
[WhiteElo "1923"]
[BlackElo "2035"]
[Annotator "RC"]
[PlyCount "60"]
[EventDate "2024.11.01"]
[EventType "swiss"]
[EventCountry "USA"]
[SourceTitle "playchess.com"]
[Source "ChessBase"]
[SourceQuality "1"]
[TimeControl "5400+30"]

1. e4 {[%emt 0:00:02]} c5 {[%emt 0:00:57]} 2. Nf3 {[%emt 0:00:10]} e6 {[%emt 0:00:07]} 3. d4 {[%emt 0:00:05]} cxd4 {[%emt 0:00:05]} 4. Nxd4 {[%emt 0:00:07]} a6 {[%emt 0:00:12]} 5. Bd3 {[%emt 0:00:07]} Bc5 {[%emt 0:01:08]} 6. Nb3 {[%emt 0:00:06]} Ba7 {[%emt 0:00:07]} 7. Qg4 {[%emt 0:00:07]} Nf6 {[%emt 0:01:44]} 8. Qg3 {[%emt 0:00:06]} d6 {[%emt 0:00:45]} 9. O-O {[%emt 0:00:23]} Nc6 {[%emt 0:06:37]} 10. Qxg7 {[%emt 0:05:03]} Rg8 {[%emt 0:00:58]} 11. Qh6 {[%emt 0:00:13]} Ne5 {[%emt 0:04:55]} 12. Bg5 {[%emt 0:08:34]} Rg6 {[%emt 0:09:15]} 13. Qh4 {[%emt 0:00:40]} h6 {[%emt 0:16:41]} 14. Bxf6 {[%emt 0:00:15]} Rxf6 {[%emt 0:02:50]} 15. N1d2 {[%emt 0:01:01]} Bd7 {[%emt 0:07:57]} 16. Kh1 {[%emt 0:04:22]} Qe7 {[%emt 0:04:24]} 17. f4 {[%emt 0:01:56]} Ng6 {[%emt 0:02:49]} 18. Qxh6 {[%emt 0:00:34]} O-O-O {[%emt 0:02:54]} 19. Qg5 {[%emt 0:01:35]} e5 {[%emt 0:06:10]} 20. f5 {[%emt 0:02:18]} Rh8 {[%emt 0:01:47]} 21. g3 {[%emt 0:04:02]} Nf8 {[%emt 0:06:06]} 22. Nf3 {[%emt 0:08:11]} Qd8 {[%emt 0:16:08]} 23. g4 {[%emt 0:03:05]} Rh3 {[%emt 0:01:59]} 24. Kg2 {[%emt 0:01:18]} Nh7 {[%emt 0:00:36]} 25. Qd2 {[%emt 0:10:13]} Rfh6 {[%emt 0:00:14]} 26. g5 {[%emt 0:20:44]} Nxg5 {[%emt 0:00:57]} 27. Kh1 {[%emt 0:01:29]} Qh8 {[%emt 0:01:19]} 28. Qc3+ {[%emt 0:02:42]} Kb8 {[%emt 0:00:17]} 29. Qd2 {[%emt 0:00:17]} Nxf3 {[%emt 0:00:30]} 30. Rxf3 {[%emt 0:00:10]} Rxh2+ {[%emt 0:00:07]} 0-1

[Event "Marshall CC FIDE Premier November 2024"]
[Site "New York"]
[Date "2024.11.02"]
[Round "2.6"]
[White "Stancil, Kimani"]
[Black "Muthukumar, Haari"]
[Result "0-1"]
[ECO "C11"]
[WhiteElo "1915"]
[BlackElo "2168"]
[Annotator "RC"]
[PlyCount "102"]
[EventDate "2024.11.01"]
[EventType "swiss"]
[EventCountry "USA"]
[SourceTitle "playchess.com"]
[Source "ChessBase"]
[SourceQuality "1"]
[TimeControl "5400+30"]

1. e4 {[%emt 0:00:43]} e6 {[%emt 0:00:31]} 2. d4 {[%emt 0:00:12]} d5 {[%emt 0:00:07]} 3. Nc3 {[%emt 0:00:09]} Nf6 {[%emt 0:01:11]} 4. e5 {[%emt 0:10:37]} Nfd7 {[%emt 0:00:09]} 5. f4 {[%emt 0:00:01]} c5 {[%emt 0:00:20]} 6. Nf3 {[%emt 0:00:05]} Nc6 {[%emt 0:00:49]} 7. Be3 {[%emt 0:00:11]} Rb8 {[%emt 0:01:05]} 8. Qd2 {[%emt 1:22:32]} Qa5 {[%emt 0:00:03]} 9. Be2 {[%emt 0:31:43]} b5 {[%emt 0:01:06]} 10. O-O {[%emt 0:00:26]} b4 {[%emt 0:00:44]} 11. Nd1 {[%emt 0:01:36]} Nb6 {[%emt 0:12:09]} 12. b3 {[%emt 0:02:03]} Ba6 {[%emt 0:07:48]} 13. Nf2 {[%emt 0:00:11]} Bxe2 {[%emt 0:01:18]} 14. Qxe2 {[%emt 0:00:04]} c4 {[%emt 0:00:14]} 15. g4 {[%emt 0:11:41]} Be7 {[%emt 0:08:24]} 16. Kh1 {[%emt 0:03:21]} Kd7 {[%emt 0:05:10]} 17. Bd2 {[%emt 0:00:58]} Qb5 {[%emt 0:01:09]} 18. f5 {[%emt 0:03:39]} a6 {[%emt 0:03:10]} 19. Bf4 {[%emt 0:00:43]} g6 {[%emt 0:05:08]} 20. Qe3 {[%emt 0:01:23]} Rbe8 {[%emt 0:13:45]} 21. Rfe1 {[%emt 0:06:11]} h5 {[%emt 0:01:41]} 22. Ng5 {[%emt 0:03:06]} Ref8 {[%emt 0:01:47]} 23. f6 {[%emt 0:00:48]} Bd8 {[%emt 0:00:13]} 24. a4 {[%emt 0:00:13]} bxa3 {[%emt 0:03:19]} 25. Rxa3 {[%emt 0:00:02]} Bc7 {[%emt 0:01:28]} 26. Rea1 {[%emt 0:00:37]} a5 {[%emt 0:00:22]} 27. Qc3 {[%emt 0:00:32]} hxg4 {[%emt 0:05:18]} 28. Rxa5 {[%emt 0:03:18]} Nxa5 {[%emt 0:00:28]} 29. Rxa5 {[%emt 0:00:01]} Qc6 {[%emt 0:00:11]} 30. Qb4 {[%emt 0:00:15]} cxb3 {[%emt 0:02:44]} 31. Rc5 {[%emt 0:04:07]} Qa4 {[%emt 0:02:29]} 32. Qc3 {[%emt 0:00:00]} Na8 {[%emt 0:03:18]} 33. Nd3 {[%emt 0:00:37]} Bb6 {[%emt 0:02:34]} 34. cxb3 {[%emt 0:00:07]} Qa7 {[%emt 0:04:41]} 35. Rc6 {[%emt 0:00:19]} Nc7 {[%emt 0:00:44]} 36. Rd6+ {[%emt 0:02:23]} Kc8 {[%emt 0:00:39]} 37. Be3 {[%emt 0:00:25]} Qa2 {[%emt 0:01:26]} 38. Nb2 {[%emt 0:03:07]} g3 {[%emt 0:02:47]} 39. h3 {[%emt 0:00:27]} Qa5 {[%emt 0:02:47]} 40. b4 {[%emt 0:01:06]} Qb5 {[%emt 0:00:14]} 41. Kg2 {[%emt 0:01:29]} Kb7 {[%emt 0:00:58]} 42. Kxg3 {[%emt 0:01:27]} Ne8 {[%emt 0:02:16]} 43. Rxb6+ {[%emt 0:01:22]} Kxb6 {[%emt 0:00:23]} 44. Nd3 {[%emt 0:00:19]} Nc7 {[%emt 0:00:25]} 45. Nc5 {[%emt 0:00:06]} Rh5 {[%emt 0:02:02]} 46. Nd7+ {[%emt 0:00:25]} Qxd7 {[%emt 0:00:12]} 47. Qc5+ {[%emt 0:00:03]} Kb7 {[%emt 0:00:22]} 48. Qxf8 {[%emt 0:00:05]} Qb5 {[%emt 0:00:47]} 49. Kf2 {[%emt 0:01:18]} Qd3 {[%emt 0:00:36]} 50. h4 {[%emt 0:02:07]} Rxh4 {[%emt 0:00:25]} 51. Nxf7 {[%emt 0:00:31]} Qf5+ {[%emt 0:00:36]} 0-1